lending/lending_fUSD_20240723
["ID","MTS","AMOUNT","RATE_DAILY","PERIOD"]
[332979387,1721718689929,19668.04883904,7.024e-05,2]
[332979388,1721718693659,540.52675567,7.024e-05,2]
[332979389,1721718694412,158.87232732,7.024e-05,2]
[332979390,1721718694814,268.52906281,7.024e-05,2]
[332979421,1721718702962,155.91938728,7.024e-05,2]
[332979422,1721718705430,19668.04883904,7.024e-05,2]
[332979423,1721718709781,1253.00318123,8.514e-05,2]
[332979424,1721718717155,530.10188823,8.514e-05,2]
[332979431,1721718728803,164.18426229,8.514e-05,2]
[332979432,1721718735037,156.77059006,8.514e-05,2]
[332979433,1721718738138,160.63085016,8.514e-05,2]
[332979441,1721718903052,1835.0,8.219e-05,2]
[332979459,1721719360965,-991.0,9.73e-05,2]
[332979460,1721719360990,-1000.0,9.731e-05,2]
[332979461,1721719361012,-239.0,9.75e-05,2]
[332979462,1721719361038,-202.56842936,9.75e-05,2]
[332979463,1721719361060,-250.0,9.76e-05,2]
[332979464,1721719361083,-169.18,9.76e-05,2]
[332979465,1721719361110,-500.0,9.768e-05,2]
[332979466,1721719361132,-250.0,9.828e-05,2]
[332979467,1721719361153,-10000.0,9.838e-05,2]
[332979468,1721719361179,-2031.71,9.895e-05,2]
[332979469,1721719361201,-239.0,9.92e-05,2]
[332979470,1721719361223,-9354.54157064,9.962e-05,2]
[332979472,1721719457165,1743.25,8.219e-05,2]
[332979476,1721719617938,-150.0,9.888e-05,2]
[332979477,1721719617959,-258.23415159,9.95e-05,2]
[332979478,1721719617979,-176.51642761,9.962e-05,2]
[332979479,1721719618002,-155.1383842,9.962e-05,2]
[332979480,1721719618022,-200.0,9.974e-05,2]
[332979481,1721719618043,-1121.17370796,9.974e-05,2]
[332979482,1721719618065,-1121.17370795,9.978e-05,2]
[332979483,1721719618087,-1121.17370795,9.981e-05,2]
[332979484,1721719618111,-23755.13,9.981e-05,2]
[332979485,1721719618133,-23900.0,9.981e-05,2]
[332979486,1721719618153,-239.0,0.0001009,2]
[332979487,1721719618174,-600.0,0.0001026,2]
[332979488,1721719618196,-1600.0,0.0001026,2]
[332979489,1721719618216,-1200.0,0.0001026,2]
[332979490,1721719618238,-2400.0,0.0001026,2]
[332979491,1721719618259,-1300.0,0.0001026,2]
[332979492,1721719618280,-239.0,0.0001026,2]
[332979493,1721719618300,-163.87678162,0.0001032,2]
[332979494,1721719618321,-947.25112385,0.0001032,2]
[332979495,1721719618341,-3211.35,0.00010414,2]
[332979496,1721719618361,-239.0,0.0001043,2]
[332979497,1721719618382,-1743.25,0.00010475,2]
[332979498,1721719618403,-239.0,0.000106,2]
[332979499,1721719618424,-239.0,0.0001077,2]
[332979500,1721719618447,-275.90399101,0.00010789,2]
[332979501,1721719618468,-3000.0,0.0001089,2]
[332979502,1721719618491,-1000.0,0.00010899,2]
[332979503,1721719618513,-150.0,0.00010899,2]
[332979504,1721719618533,-168.96783874,0.000109,2]
[332979505,1721719618554,-158.12858035,0.000109,2]
[332979506,1721719618576,-169.64893334,0.000109,2]
[332979507,1721719618597,-1489.90010016,0.000109,2]
[332979508,1721719618618,-1000.0,0.00010947,2]
[332979509,1721719618638,-201.0,0.0001095,2]
[332979510,1721719618658,-239.0,0.0001095,2]
[332979511,1721719618679,-7130.66431835,0.00010952,2]
[332979512,1721719618703,-1244.46,0.00010959,5]
[332979513,1721719618724,-250.0,0.00010959,2]
[332979514,1721719618745,-3539.91,0.00010959,2]
[332979515,1721719618766,-150.0,0.00010959,2]
[332979516,1721719618786,-621.0,0.00010962,2]
[332979517,1721719618807,-5121.0,0.00010962,2]
[332979518,1721719618827,-5828.0,0.00010962,2]
[332979519,1721719618848,-1669.0,0.00010962,2]
[332979520,1721719618868,-38358.0,0.00010962,2]
[332979521,1721719618889,-150.00000001,0.00010986,2]
[332979522,1721719618909,-6639.2003204,0.00010992,2]
[332979523,1721719618931,-32754.207726,0.00010992,2]
[332979524,1721719618952,-5858.4605137,0.00010992,2]
[332979525,1721719618973,-452.30751183,0.00010997,2]
[332979526,1721719618996,-507.36737714,0.00010997,2]
[332979527,1721719619017,-155.0,0.00010997,2]
[332979528,1721719619039,-181.3784872,0.00010997,2]
[332979529,1721719619059,-2463.69656825,0.00010997,2]
[332979530,1721719619080,-209.73197584,0.00010998,2]
[332979531,1721719619105,-3407.65525803,0.00010998,2]
[332979532,1721719619127,-4172.15,0.00010998,2]
[332979533,1721719619150,-500.0,0.00010998,2]
[332979534,1721719619172,-500.0,0.00010998,2]
[332979535,1721719619194,-744.2542947,0.00010999,2]
[332979536,1721719619216,-2252.84535934,0.00010999,2]
[332979537,1721719619238,-2000.0,0.00010999,2]
[332979538,1721719619258,-200.0,0.00010999,2]
[332979539,1721719619280,-1000.0,0.00010999,2]
[332979540,1721719619300,-1000.0,0.00010999,2]
[332979541,1721719619326,-1000.0,0.00010999,2]
[332979542,1721719619346,-1000.0,0.00010999,2]
[332979543,1721719619367,-1000.0,0.00010999,2]
[332979544,1721719619388,-1000.0,0.00010999,2]
[332979545,1721719619408,-1000.0,0.00010999,2]
[332979546,1721719619430,-1000.0,0.00010999,2]
[332979547,1721719619451,-1000.0,0.00010999,2]
[332979548,1721719619713,-1000.0,0.00010999,2]
[332979549,1721719619734,-1000.0,0.00010999,2]
[332979550,1721719619755,-1000.0,0.00010999,2]
[332979551,1721719619776,-610.65927919,0.00010999,2]
[332979552,1721719619797,-2000.0,0.00010999,2]
[332979553,1721719619817,-200.0,0.00010999,2]
[332979554,1721719619838,-511.61518396,0.00010999,2]
[332979555,1721719619858,-1227.28,0.00010999,2]
[332979556,1721719619879,-2000.0,0.00010999,2]
[332979557,1721719619899,-200.0,0.00010999,2]
[332979558,1721719619920,-4172.15,0.00010999,2]
[332979559,1721719619941,-4172.15,0.00010999,2]
[332979560,1721719619963,-4172.15,0.00010999,2]
[332979561,1721719619984,-4172.15,0.00010999,2]
[332979562,1721719620009,-4172.15,0.00010999,2]
[332979563,1721719620031,-4172.15,0.00010999,2]
[332979564,1721719620052,-500.0,0.00010999,2]
[332979565,1721719620075,-500.0,0.00010999,2]
[332979566,1721719620100,-4172.15,0.00010999,2]
[332979567,1721719620122,-500.0,0.00010999,2]
[332979568,1721719620146,-4172.15,0.00010999,2]
[332979569,1721719620168,-4172.15,0.00010999,2]
[332979570,1721719620193,-500.0,0.00010999,2]
[332979571,1721719620217,-4172.15,0.00010999,2]
[332979572,1721719620243,-500.0,0.00010999,2]
[332979573,1721719620269,-4172.15,0.00010999,2]
[332979574,1721719620293,-500.0,0.00010999,2]
[332979575,1721719620318,-500.0,0.00010999,2]
[332979576,1721719620343,-4172.15,0.00010999,2]
[332979577,1721719620366,-500.0,0.00010999,2]
[332979578,1721719620388,-4172.15,0.00010999,2]
[332979579,1721719620410,-500.0,0.00010999,2]
[332979580,1721719620433,-4172.15,0.00010999,2]
[332979581,1721719620455,-370.7501097,0.00010999,2]
[332979582,1721719620478,-4172.15,0.00010999,2]
[332979583,1721719620501,-4172.15,0.00010999,2]
[332979584,1721719620525,-4172.15,0.00010999,2]
[332979585,1721719620548,-4172.15,0.00010999,2]
[332979586,1721719620570,-4172.15,0.00010999,2]
[332979587,1721719620594,-4172.15,0.00010999,2]
[332979588,1721719620617,-4172.15,0.00010999,2]
[332979589,1721719620638,-4172.15,0.00010999,2]
[332979590,1721719620660,-4172.17077026,0.00010999,2]
[332979591,1721719620682,-500.0,0.00010999,2]
[332979592,1721719620703,-500.0,0.00010999,2]
[332979593,1721719620726,-500.0,0.00010999,2]
[332979594,1721719620749,-500.0,0.00010999,2]
[332979595,1721719620772,-500.0,0.00010999,2]
[332979596,1721719620794,-544.95706938,0.00010999,2]
[332979597,1721719620815,-32993.0,0.00011,2]
[332979598,1721719620837,-5000.0,0.00011,2]
[332979599,1721719620858,-1347.3499493,0.00011,2]
[332979600,1721719620880,-263.14,0.00011,2]
[332979601,1721719620907,-18999939.67049109,0.00011,2]
[332979628,1721719765069,-6562.6864008,9.861e-05,2]
[332979629,1721719765090,-1353.0,9.956e-05,2]
[332979630,1721719765113,-1632.38014955,9.962e-05,2]
[332979631,1721719765137,-300.0,9.999e-05,2]
[332979632,1721719765159,-1049.03428357,0.0001,2]
[332979633,1721719765181,-155.0,0.0001,2]
[332979634,1721719765204,-3183.79,0.00010073,2]
[332979635,1721719765227,-448.0773,0.0001016,2]
[332979636,1721719765248,-500.0,0.0001026,2]
[332979637,1721719765269,-1100.0,0.0001026,2]
[332979638,1721719765290,-1500.0,0.0001026,2]
[332979639,1721719765311,-2200.0,0.0001026,2]
[332979640,1721719765332,-16.03186608,0.0001026,2]
[332979650,1721719834386,-250.0,9.838e-05,2]
[332979651,1721719834396,-52.11780374,9.862e-05,2]
[332979652,1721719834408,-997.8724334,9.862e-05,2]
[332979653,1721719834420,-935.25814264,9.862e-05,2]
[332979654,1721719834432,-602.35842022,9.862e-05,2]
[332979655,1721719834443,-400.0,9.959e-05,2]
[332979656,1721719834453,-1632.38014955,9.962e-05,2]
[332979657,1721719834463,-1000.0,0.0001026,2]
[332979658,1721719834473,-920.48499885,0.0001026,2]
[332979659,1721719834485,-1079.51500115,0.0001026,2]
[332979660,1721719834495,-1400.0,0.0001026,2]
[332979661,1721719834505,-412.41398176,0.0001026,2]
[332979662,1721719834515,-833.64,0.000103,2]
[332979663,1721719834525,-420.16,0.000103,2]
[332979664,1721719834535,-420.16,0.000103,2]
[332979665,1721719834544,-423.36101709,0.000103,2]
[332979666,1721719834556,-410.27898291,0.000103,2]
[332979667,1721719834566,-200.0,0.000105,3]
[332979668,1721719834576,-500.0,0.000106,3]
[332979669,1721719834586,-355.09,0.000106,2]
[332979670,1721719834596,-709.10101709,0.000106,2]
[332979671,1721719834656,-132.45898291,0.000106,2]
[332979672,1721719834668,-465.42,0.000106,2]
[332979673,1721719834678,-800.0,0.000107,3]
[332979676,1721719834691,-1008.10976634,0.00010733,2]
[332979678,1721719834701,-4754.59505787,0.0001077,2]
[332979680,1721719834711,-150.0,0.00010779,2]
[332979682,1721719834721,-2947.21066815,0.0001078,2]
[332979684,1721719834732,-652.32795161,0.0001078,2]
[332979686,1721719834744,-1387.33688024,0.0001078,2]
[332979688,1721719834754,-3300.54808491,0.0001078,2]
[332979694,1721719835035,-1074.32,0.0001078,2]
[332979695,1721719835046,-16064.99999999,0.0001078,2]
[332979696,1721719835058,-397.56791311,0.0001078,2]
[332979698,1721719838540,-659.75132017,0.0001078,2]
[332979699,1721719838621,-612.67446186,0.0001078,2]
[332979700,1721719838633,-25949.34151996,0.0001078,2]
[332979701,1721719838642,-2756.7848,0.0001078,2]
[332979702,1721719838652,-1000.0,0.000108,3]
[332979703,1721719838663,-833.64,0.000108,2]
[332979704,1721719838672,-2325.2692,0.00010862,2]
[332979705,1721719838682,-151396.87092536,0.0001088,2]
[332979706,1721719838691,-14025.50164816,0.0001089,2]
[332979707,1721719838700,-85028.1561,0.00010892,2]
[332979708,1721719838711,-1000.6278,0.00010897,2]
[332979709,1721719838721,-1000.0,0.00010898,2]
[332979710,1721719838730,-1216.1253,0.00010898,2]
[332979711,1721719838739,-878.5719,0.00010899,2]
[332979712,1721719838748,-1300.0,0.000109,3]
[332979713,1721719838758,-159.40595947,0.000109,2]
[332979714,1721719838767,-1070.99,0.00010958,2]
[332979715,1721719838777,-500.0,0.00010958,2]
[332979716,1721719838786,-250.0,0.00010959,2]
[332979717,1721719838795,-5121.0,0.00010962,2]
[332979718,1721719838805,-5828.0,0.00010962,2]
[332979719,1721719838814,-38358.0,0.00010962,2]
[332979720,1721719838824,-565.586,0.00010962,2]
[332979721,1721719838833,-513.81481944,0.00010997,2]
[332979722,1721719838842,-31050.4608421,0.00010998,2]
[332979723,1721719838851,-1070.99,0.00010998,2]
[332979724,1721719838860,-500.0,0.00010998,2]
[332979725,1721719838870,-500.0,0.00010999,2]
[332979726,1721719838880,-500.0,0.00010999,2]
[332979727,1721719838890,-500.0,0.00010999,2]
[332979728,1721719838899,-500.0,0.00010999,2]
[332979729,1721719838910,-500.0,0.00010999,2]
[332979730,1721719838919,-500.0,0.00010999,2]
[332979731,1721719838928,-500.0,0.00010999,2]
[332979732,1721719838938,-225.46995741,0.00010999,2]
[332979734,1721719838947,-500.0,0.00010999,2]
[332979736,1721719838957,-1703.82762902,0.00010999,2]
[332979738,1721719838966,-500.0,0.00010999,2]
[332979740,1721719838975,-500.0,0.00010999,2]
[332979742,1721719838985,-500.0,0.00010999,2]
[332979744,1721719838994,-161.57451883,0.00010999,2]
[332979746,1721719839003,-500.0,0.00010999,2]
[332979747,1721719839012,-500.0,0.00010999,2]
[332979748,1721719839023,-500.0,0.00010999,2]
[332979749,1721719839032,-500.0,0.00010999,2]
[332979750,1721719839260,-500.0,0.00010999,2]
[332979751,1721719839271,-500.0,0.00010999,2]
[332979752,1721719839280,-500.0,0.00010999,2]
[332979753,1721719839291,-500.0,0.00010999,2]
[332979754,1721719839301,-500.0,0.00010999,2]
[332979755,1721719839310,-500.0,0.00010999,2]
[332979756,1721719839319,-500.0,0.00010999,2]
[332979757,1721719839329,-500.0,0.00010999,2]
[332979758,1721719839338,-500.0,0.00010999,2]
[332979759,1721719839348,-500.0,0.00010999,2]
[332979760,1721719839358,-500.0,0.00010999,2]
[332979761,1721719839367,-500.0,0.00010999,2]
[332979762,1721719839377,-500.0,0.00010999,2]
[332979763,1721719839386,-500.0,0.00010999,2]
[332979764,1721719839395,-500.0,0.00010999,2]
[332979765,1721719839405,-500.0,0.00010999,2]
[332979766,1721719839416,-500.0,0.00010999,2]
[332979767,1721719839426,-500.0,0.00010999,2]
[332979768,1721719839436,-293.1,0.00010999,2]
[332979769,1721719839445,-503.88415513,0.00010999,2]
[332979770,1721719839455,-500.0,0.00010999,2]
[332979771,1721719839465,-500.0,0.00010999,2]
[332979772,1721719839475,-500.0,0.00010999,2]
[332979773,1721719839484,-500.0,0.00010999,2]
[332979774,1721719839493,-500.0,0.00010999,2]
[332979775,1721719839502,-500.0,0.00010999,2]
[332979776,1721719839512,-500.0,0.00010999,2]
[332979777,1721719839522,-167.42848699,0.00010999,2]
[332979778,1721719839532,-1732.7,0.00010999,2]
[332979779,1721719839541,-1732.7,0.00010999,2]
[332979780,1721719839550,-1732.7,0.00010999,2]
[332979782,1721719839561,-1732.7,0.00010999,2]
[332979783,1721719839572,-1732.7,0.00010999,2]
[332979784,1721719839581,-1732.7,0.00010999,2]
[332979785,1721719839590,-1732.7,0.00010999,2]
[332979786,1721719839599,-1732.7,0.00010999,2]
[332979787,1721719839609,-1732.7,0.00010999,2]
[332979788,1721719839619,-1732.7,0.00010999,2]
[332979789,1721719839628,-1732.7,0.00010999,2]
[332979790,1721719839638,-1176.14,0.00010999,2]
[332979791,1721719839648,-1732.7,0.00010999,2]
[332979792,1721719839658,-1732.7,0.00010999,2]
[332979793,1721719839668,-1732.7,0.00010999,2]
[332979794,1721719839677,-1732.7,0.00010999,2]
[332979795,1721719839687,-1732.7,0.00010999,2]
[332979796,1721719839697,-1732.7,0.00010999,2]
[332979797,1721719839706,-1732.7,0.00010999,2]
[332979798,1721719839716,-1732.7,0.00010999,2]
[332979799,1721719839725,-1732.7,0.00010999,2]
[332979800,1721719839734,-1732.7,0.00010999,2]
[332979801,1721719839744,-1732.7,0.00010999,2]
[332979802,1721719839754,-1732.7,0.00010999,2]
[332979803,1721719839764,-1732.81580812,0.00010999,2]
[332979804,1721719839774,-1362.53,0.00010999,2]
[332979805,1721719839783,-1362.53,0.00010999,2]
[332979806,1721719839795,-1362.53,0.00010999,2]
[332979807,1721719839805,-1362.53,0.00010999,2]
[332979808,1721719839815,-1362.53,0.00010999,2]
[332979809,1721719839825,-1362.53,0.00010999,2]
[332979810,1721719839835,-1362.53,0.00010999,2]
[332979811,1721719839844,-1362.53,0.00010999,2]
[332979812,1721719839854,-1362.53,0.00010999,2]
[332979813,1721719839863,-1362.53,0.00010999,2]
[332979814,1721719839873,-1362.53,0.00010999,2]
[332979815,1721719839882,-1362.53,0.00010999,2]
[332979816,1721719839892,-1362.53,0.00010999,2]
[332979817,1721719839902,-1362.53,0.00010999,2]
[332979818,1721719839913,-1362.53,0.00010999,2]
[332979819,1721719839922,-1362.53,0.00010999,2]
[332979820,1721719839932,-1362.53,0.00010999,2]
[332979821,1721719839942,-1362.53,0.00010999,2]
[332979822,1721719839951,-1362.53,0.00010999,2]
[332979823,1721719839961,-1362.53,0.00010999,2]
[332979824,1721719839971,-1362.53,0.00010999,2]
[332979825,1721719839980,-1362.53,0.00010999,2]
[332979826,1721719839990,-1362.53,0.00010999,2]
[332979827,1721719840000,-1362.72789662,0.00010999,2]
[332979828,1721719840010,-1673.17,0.00010999,2]
[332979829,1721719840019,-1673.17,0.00010999,2]
[332979830,1721719840029,-1673.17,0.00010999,2]
[332979831,1721719840038,-1673.17,0.00010999,2]
[332979832,1721719840048,-1673.17,0.00010999,2]
[332979833,1721719840058,-1673.17,0.00010999,2]
[332979834,1721719840067,-1673.17,0.00010999,2]
[332979835,1721719840077,-1673.17,0.00010999,2]
[332979836,1721719840087,-1673.17,0.00010999,2]
[332979837,1721719840097,-1673.17,0.00010999,2]
[332979838,1721719840107,-1673.17,0.00010999,2]
[332979839,1721719840117,-1673.17,0.00010999,2]
[332979840,1721719840127,-1673.17,0.00010999,2]
[332979841,1721719840136,-1673.17,0.00010999,2]
[332979842,1721719840146,-1673.17,0.00010999,2]
[332979843,1721719840161,-1673.17,0.00010999,2]
[332979844,1721719840171,-1673.17,0.00010999,2]
[332979845,1721719840181,-1673.17,0.00010999,2]
[332979846,1721719840192,-1673.17,0.00010999,2]
[332979847,1721719840202,-1673.17,0.00010999,2]
[332979848,1721719840211,-1673.17,0.00010999,2]
[332979849,1721719840221,-1673.17,0.00010999,2]
[332979850,1721719840232,-1673.17,0.00010999,2]
[332979851,1721719840242,-1673.31915593,0.00010999,2]
[332979852,1721719840251,-500.0,0.00010999,2]
[332979853,1721719840261,-500.0,0.00010999,2]
[332979854,1721719840271,-500.0,0.00010999,2]
[332979855,1721719840281,-500.0,0.00010999,2]
[332979856,1721719840291,-500.0,0.00010999,2]
[332979857,1721719840300,-500.0,0.00010999,2]
[332979858,1721719840310,-500.0,0.00010999,2]
[332979859,1721719840320,-500.0,0.00010999,2]
[332979861,1721719840329,-500.0,0.00010999,2]
[332979862,1721719840338,-500.0,0.00010999,2]
[332979863,1721719840348,-500.0,0.00010999,2]
[332979864,1721719840358,-500.0,0.00010999,2]
[332979865,1721719840368,-500.0,0.00010999,2]
[332979866,1721719840377,-500.0,0.00010999,2]
[332979867,1721719840388,-500.0,0.00010999,2]
[332979868,1721719840398,-500.0,0.00010999,2]
[332979869,1721719840408,-500.0,0.00010999,2]
[332979870,1721719840417,-205.07920468,0.00010999,2]
[332979871,1721719840426,-1036.19,0.00010999,2]
[332979872,1721719840436,-1036.19,0.00010999,2]
[332979873,1721719840447,-1036.19,0.00010999,2]
[332979874,1721719840457,-1036.19,0.00010999,2]
[332979875,1721719840466,-1036.19,0.00010999,2]
[332979876,1721719840476,-1036.19,0.00010999,2]
[332979877,1721719840486,-1036.19,0.00010999,2]
[332979878,1721719840496,-1036.19,0.00010999,2]
[332979879,1721719840505,-1036.19,0.00010999,2]
[332979880,1721719840515,-1036.19,0.00010999,2]
[332979881,1721719840524,-1036.19,0.00010999,2]
[332979882,1721719840534,-1036.19,0.00010999,2]
[332979883,1721719840544,-1036.19,0.00010999,2]
[332979884,1721719840554,-1036.19,0.00010999,2]
[332979885,1721719840564,-1036.19,0.00010999,2]
[332979886,1721719840575,-1036.19,0.00010999,2]
[332979887,1721719840585,-1036.19,0.00010999,2]
[332979888,1721719840595,-1036.19,0.00010999,2]
[332979889,1721719840604,-1036.19,0.00010999,2]
[332979890,1721719840616,-1036.19,0.00010999,2]
[332979891,1721719840626,-1036.19,0.00010999,2]
[332979892,1721719840638,-1036.19,0.00010999,2]
[332979893,1721719840648,-1036.19,0.00010999,2]
[332979894,1721719840660,-1036.40363006,0.00010999,2]
[332979895,1721719840670,-150.0,0.00010999,2]
[332979896,1721719840679,-500.0,0.00010999,2]
[332979897,1721719840689,-509.33965573,0.00010999,2]
[332979898,1721719840699,-874.07,0.00010999,2]
[332979899,1721719840708,-874.07,0.00010999,2]
[332979900,1721719840718,-874.07,0.00010999,2]
[332979901,1721719840727,-874.07,0.00010999,2]
[332979902,1721719840737,-874.07,0.00010999,2]
[332979903,1721719840747,-874.07,0.00010999,2]
[332979904,1721719840756,-874.07,0.00010999,2]
[332979905,1721719840766,-874.07,0.00010999,2]
[332979906,1721719840776,-874.07,0.00010999,2]
[332979907,1721719840785,-874.07,0.00010999,2]
[332979908,1721719840795,-874.07,0.00010999,2]
[332979909,1721719840804,-874.07,0.00010999,2]
[332979910,1721719840814,-874.07,0.00010999,2]
[332979911,1721719840824,-874.07,0.00010999,2]
[332979912,1721719840834,-874.07,0.00010999,2]
[332979913,1721719840843,-874.07,0.00010999,2]
[332979914,1721719840853,-874.07,0.00010999,2]
[332979915,1721719840863,-1070.99,0.00010999,2]
[332979916,1721719840873,-1070.99,0.00010999,2]
[332979917,1721719840882,-874.07,0.00010999,2]
[332979918,1721719840892,-1070.99,0.00010999,2]
[332979919,1721719840902,-874.07,0.00010999,2]
[332979920,1721719840913,-1070.99,0.00010999,2]
[332979921,1721719840922,-874.07,0.00010999,2]
[332979922,1721719840935,-1070.99,0.00010999,2]
[332979923,1721719840945,-874.07,0.00010999,2]
[332979924,1721719840954,-874.07,0.00010999,2]
[332979925,1721719840964,-1070.99,0.00010999,2]
[332979926,1721719840973,-874.07,0.00010999,2]
[332979927,1721719840983,-1070.99,0.00010999,2]
[332979928,1721719840992,-874.14121291,0.00010999,2]
[332979929,1721719841002,-1070.99,0.00010999,2]
[332979930,1721719841011,-1070.99,0.00010999,2]
[332979931,1721719841020,-1070.99,0.00010999,2]
[332979932,1721719841030,-1070.99,0.00010999,2]
[332979933,1721719841039,-1070.99,0.00010999,2]
[332979934,1721719841049,-500.0,0.00010999,2]
[332979935,1721719841058,-500.0,0.00010999,2]
[332979936,1721719841067,-500.0,0.00010999,2]
[332979937,1721719841078,-500.0,0.00010999,2]
[332979939,1721719841088,-500.0,0.00010999,2]
[332979941,1721719841098,-500.0,0.00010999,2]
[332979943,1721719841107,-500.0,0.00010999,2]
[332979945,1721719841116,-500.0,0.00010999,2]
[332979947,1721719841126,-500.0,0.00010999,2]
[332979949,1721719841135,-500.0,0.00010999,2]
[332979951,1721719841144,-500.0,0.00010999,2]
[332979953,1721719841154,-500.0,0.00010999,2]
[332979956,1721719841169,-500.0,0.00010999,2]
[332979957,1721719841178,-500.0,0.00010999,2]
[332979959,1721719841187,-500.0,0.00010999,2]
[332979961,1721719841197,-500.0,0.00010999,2]
[332979963,1721719841207,-500.0,0.00010999,2]
[332979965,1721719841217,-500.0,0.00010999,2]
[332979967,1721719841226,-531.57984133,0.00010999,2]
[332979969,1721719841236,-500.0,0.00010999,2]
[332979971,1721719841246,-523.0,0.00011,2]
[332979973,1721719841255,-300482.08333975,0.00011,2]
[332979981,1721719841536,-1083099.33864,0.00011,2]
[332979982,1721719841560,-7527.71516329,0.00011,2]
[332979983,1721719841761,-1101.1,0.00010962,2]
[332979984,1721719841772,-892.9,0.00010962,2]
[332979985,1721719841782,-500.0,0.00010999,2]
[332979986,1721719841792,-500.0,0.00010999,2]
[332979987,1721719841801,-500.0,0.00010999,2]
[332979988,1721719841811,-500.0,0.00010999,2]
[332979989,1721719841820,-500.0,0.00010999,2]
[332979990,1721719841830,-401384.01628043,0.00011,2]
[332979991,1721719841839,-276.69675869,0.00011,2]
[332979992,1721719841848,-5592.0,0.00011,2]
[332979993,1721719841858,-5908.016589,0.00011,2]
[332979994,1721719841868,-9056.0,0.00011,2]
[332979995,1721719841877,-603.3062222,0.00011,2]
[332979996,1721719841887,-3547.0,0.00011,2]
[332979997,1721719841896,-304125.05016775,0.00011,2]
[332979998,1721719841912,-1392.54925059,0.00011,2]
[332980002,1721719844537,-500.0,0.0001026,2]
[332980003,1721719844547,-1200.0,0.0001026,2]
[332980004,1721719844557,-500.0,0.00010958,2]
[332980005,1721719844566,-233.421,0.00010962,2]
[332980006,1721719844576,-547.0978401,0.00010998,2]
[332980007,1721719844585,-610.96855315,0.00010999,2]
[332980008,1721719844595,-500.0,0.00010999,2]
[332980009,1721719844604,-271.32024489,0.00010999,2]
[332980010,1721719844614,-1703.82762901,0.00010999,2]
[332980011,1721719844623,-521.74362309,0.00010999,2]
[332980012,1721719844633,-6842.3155145,0.00011,2]
[332980056,1721719845372,-11132.90869594,0.00011,2]
[332980059,1721719845385,-665.151696,0.00011,2]
[332980061,1721719845398,-1722.22563308,0.00011,2]
[332980063,1721719845412,-25898.92068761,0.00011,2]
[332980065,1721719845424,-1133.29076634,0.00011,2]
[332980067,1721719845438,-1101.1,0.00011,2]
[332980070,1721719845450,-300.0,0.00011,2]
[332980072,1721719845462,-2745.0,0.00011,2]
[332980074,1721719845475,-8404.93,0.00011,2]
[332980076,1721719845487,-11995.416,0.00011,2]
[332980078,1721719845499,-88228.90544926,0.00011,2]
[332980081,1721719845511,-386.09485257,0.00011,2]
[332980300,1721719847868,-500.0,0.00010213,2]
[332980302,1721719847877,-500.0,0.00010999,2]
[332980304,1721719847887,-414634.19848922,0.00011,2]
[332980306,1721719847898,-1864.5410088,0.00011,2]
[332980311,1721719847937,-500.0,0.00010999,2]
[332980313,1721719847947,-50.0,0.00011,2]
[332980315,1721719847959,-375.93228978,0.00011,2]
[332980319,1721719847980,-329.5445762,0.00011,2]
[332980321,1721719847993,-1650.24238056,0.00011,2]
[332980323,1721719848008,-312.64,0.00011,2]
[332980651,1721719908207,18256.75,4.781e-05,7]
[332980652,1721719908232,1771.8891178,4.781e-05,7]